bitfinex/quotes_BTCUSD_20250101
["timestamp","ask_amount","ask_price","bid_price","bid_amount"]
[1735734923128,0.0001,93987.0,93986.0,0.1836112]
[1735734923542,0.0001,93987.0,93986.0,0.07962488]
[1735734923921,0.0001,93987.0,93986.0,0.007]
[1735734933556,0.21284251,93989.0,93986.0,0.007]
[1735734933692,0.42563551,93989.0,93986.0,0.007]
[1735734934411,0.42563551,93989.0,93985.0,0.0001704]
[1735734934629,0.42563551,93989.0,93986.0,0.001]
[1735734935041,0.42563551,93989.0,93986.0,0.005]
[1735734935266,0.42563551,93989.0,93985.0,0.0001704]
[1735734935749,0.42563551,93989.0,93985.0,0.0051704]
[1735734936075,0.42563551,93989.0,93985.0,0.0011704]
[1735734937466,0.42563551,93989.0,93986.0,0.004]
[1735734937666,0.42563551,93989.0,93985.0,0.0011704]
[1735734938165,0.42563551,93989.0,93985.0,0.0051704]
[1735734938366,0.42563551,93989.0,93985.0,0.0001704]
[1735734938702,0.42563551,93989.0,93986.0,0.005]
[1735734939289,0.42563551,93989.0,93985.0,0.0001704]
[1735734939908,0.212795,93987.0,93985.0,0.0001704]
[1735734940111,0.15,93986.0,93985.0,0.0001704]
[1735734941030,0.15,93986.0,93985.0,0.0011704]
[1735734941445,0.15,93986.0,93985.0,0.0051704]
[1735734941653,0.15,93986.0,93985.0,0.0041704]
[1735734941858,0.15,93986.0,93985.0,0.0001704]
[1735734941859,0.152,93986.0,93985.0,0.0001704]
[1735734942058,0.156,93986.0,93985.0,0.0001704]
[1735734949778,0.179,93986.0,93985.0,0.0001704]
[1735734951827,4.73958632,93986.0,93985.0,4e-07]
[1735734952035,0.35958632,93986.0,93985.0,4e-07]
[1735734952399,0.385827,93973.0,93967.0,0.0001706]
[1735734954666,0.389827,93973.0,93967.0,0.0001706]
[1735734955245,0.389827,93973.0,93967.0,2e-07]
[1735734955246,0.385838,93968.0,93967.0,2e-07]
[1735734955453,0.56642432,93968.0,93967.0,2e-07]
[1735734957010,0.80991709,93968.0,93967.0,2e-07]
[1735734957557,0.362874,93952.0,93942.0,0.075]
[1735734958588,0.48986032,93952.0,93951.0,1e-06]
[1735734958821,0.48986032,93952.0,93951.0,0.0004968]
[1735734959003,0.49586032,93952.0,93951.0,0.0004968]
[1735734959951,0.49586032,93952.0,93951.0,8e-07]
[1735734960171,0.218874,93952.0,93951.0,8e-07]
[1735734960397,0.220874,93952.0,93951.0,0.0750008]
[1735734961031,0.220874,93952.0,93951.0,8e-07]
[1735734961235,0.49786032,93952.0,93951.0,8e-07]
[1735734965204,0.370874,93952.0,93951.0,0.0476008]
[1735734965391,0.370874,93952.0,93951.0,0.1242008]
[1735734965392,0.158,93952.0,93951.0,0.1242008]
[1735734965723,0.008,93952.0,93951.0,0.1242008]
[1735734965925,0.008,93952.0,93951.0,0.1243714]
[1735734966336,0.006,93952.0,93951.0,0.1243714]
[1735734966671,0.15,93954.0,93951.0,0.1243714]
[1735734968035,0.212872,93953.0,93951.0,0.1263714]
[1735734968498,0.212872,93953.0,93951.0,0.1253714]
[1735734969361,0.15,93954.0,93951.0,0.1253714]
[1735734969668,0.15,93954.0,93951.0,0.1243714]
[1735734969873,0.15,93954.0,93951.0,0.1253714]
[1735734970056,0.15,93954.0,93951.0,0.1263714]
[1735734970261,0.212872,93953.0,93951.0,0.1263714]
[1735734970803,0.212856,93960.0,93951.0,0.1263714]
[1735734971031,0.212824,93974.0,93955.0,0.1783]
[1735734971230,0.212824,93975.0,93951.0,0.0497714]
[1735734971231,0.212838,93969.0,93958.0,0.0783]
[1735734971639,0.15,93968.0,93958.0,0.0783]
[1735734971844,0.23949277,93986.0,93969.0,0.2255]
[1735734972091,0.21282,93976.0,93969.0,0.32948632]
[1735734972294,0.009,93974.0,93969.0,0.32948632]
[1735734972509,0.15,93975.0,93969.0,0.32948632]
[1735734972743,0.212812,93980.0,93970.0,0.0783]
[1735734973162,0.21282,93976.0,93970.0,0.0783]
[1735734974215,0.15,93975.0,93970.0,0.0793]
[1735734974834,0.15,93975.0,93971.0,0.20398632]
[1735734975008,0.15,93975.0,93972.0,0.0783]
[1735734975217,0.15,93979.0,93972.0,0.0783]
[1735734976392,0.212812,93980.0,93972.0,0.0813]
[1735734976532,0.15,93979.0,93972.0,0.0783]
[1735734976920,0.15,93977.0,93972.0,0.0783]
[1735734977123,0.15,93977.0,93972.0,0.0793]
[1735734977705,0.15,93977.0,93972.0,0.0783]
[1735734977817,0.15,93975.0,93972.0,0.0793]
[1735734978014,0.15,93975.0,93972.0,0.0813]
[1735734978245,0.15,93975.0,93972.0,0.0793]
[1735734978707,0.15,93975.0,93972.0,0.0813]
[1735734978887,0.1,94048.0,93986.0,0.1]
[1735734979111,0.0769,94037.0,93986.0,0.32948632]
[1735734979252,0.212725,94018.0,93986.0,0.32948632]
[1735734979435,0.212725,94018.0,93988.0,0.2206]
[1735734979663,0.212725,94018.0,93988.0,0.32458632]
[1735734980395,0.0005808,93989.0,93988.0,0.32458632]
[1735734980622,0.0005808,93989.0,93988.0,0.40960445]
[1735734982384,0.0015808,93989.0,93988.0,0.41860445]
[1735734982584,0.0015808,93989.0,93988.0,0.40960445]
[1735734983135,0.0025808,93989.0,93988.0,0.41860445]
[1735734983332,0.0025808,93989.0,93988.0,0.42560445]
[1735734984048,0.0025808,93989.0,93988.0,0.41860445]
[1735734984265,0.0025808,93989.0,93988.0,0.42560445]
[1735734984462,0.0025808,93989.0,93988.0,0.34058632]
[1735734984873,0.0005808,93989.0,93988.0,0.33158632]
[1735734985012,0.0005808,93989.0,93988.0,0.33758632]
[1735734985218,0.0015808,93989.0,93988.0,0.33758632]
[1735734985421,0.0015808,93989.0,93988.0,0.33158632]
[1735734985631,0.0025808,93989.0,93988.0,0.33758632]
[1735734986037,0.0025808,93989.0,93988.0,0.42390495]
[1735734988219,0.0025808,93989.0,93988.0,0.33758632]
[1735734988398,0.0025808,93989.0,93988.0,0.55037932]
[1735734999703,8.54e-05,94012.0,93988.0,0.55037932]
[1735734999934,8.54e-05,94012.0,93991.0,0.10398632]
[1735735000792,0.212743,94010.0,93991.0,0.10398632]
[1735735000979,0.0010853,94007.0,94006.0,0.1]
[1735735001188,0.0010853,94007.0,94006.0,0.20398632]
[1735735001465,0.0020853,94007.0,94006.0,0.20398632]
[1735735002180,0.0010853,94007.0,94006.0,0.20398632]
[1735735002313,8.53e-05,94007.0,94006.0,0.20398632]
[1735735002516,8.53e-05,94007.0,94006.0,0.20798632]
[1735735002724,8.53e-05,94007.0,94006.0,0.20998632]
[1735735003963,8.53e-05,94007.0,94006.0,0.20598632]
[1735735004185,8.53e-05,94007.0,93989.0,0.1]
[1735735004481,0.3628353,94007.0,94006.0,0.002]
[1735735004686,0.4083353,94007.0,94006.0,0.002]
[1735735004886,0.1955853,94007.0,93989.0,0.20398632]
[1735735005089,0.212788,93990.0,93987.0,0.0001706]
[1735735005287,0.425577,93990.0,93987.0,0.0001706]
[1735735005467,0.425577,93990.0,93989.0,0.002]
[1735735005662,0.575577,93990.0,93989.0,0.002]
[1735735005888,0.212793,93988.0,93987.0,0.0001706]
[1735735007505,0.362793,93988.0,93987.0,0.0021706]
[1735735008560,0.362793,93988.0,93987.0,0.0041706]
[1735735008750,0.362793,93988.0,93987.0,0.0061706]
[1735735009324,0.362793,93988.0,93987.0,0.0062706]
[1735735010600,0.362793,93988.0,93987.0,0.0042706]
[1735735010822,0.364793,93988.0,93987.0,0.0042706]
[1735735011412,0.364793,93988.0,93987.0,0.0002706]
[1735735011668,0.369793,93988.0,93987.0,0.0012706]
[1735735012584,0.007,93988.0,93987.0,0.0012706]
[1735735012785,0.219793,93988.0,93987.0,0.0012706]
[1735735013723,0.219743,93988.0,93987.0,0.0012706]
[1735735015046,0.00695,93988.0,93987.0,0.01941766]
[1735735015451,0.00695,93988.0,93987.0,0.22340398]
[1735735016318,0.00695,93988.0,93987.0,0.20525692]
[1735735017574,0.00695,93988.0,93987.0,0.10525692]
[1735735018402,0.00695,93988.0,93987.0,0.20525692]
[1735735022638,0.00685,93988.0,93987.0,0.20525692]
[1735735023023,0.00185,93988.0,93987.0,0.20425692]
[1735735023225,8.53e-05,93989.0,93987.0,0.20825692]
[1735735023429,8.53e-05,93989.0,93988.0,0.20398632]
[1735735025053,8.53e-05,93989.0,93988.0,0.20598632]
[1735735025814,8.53e-05,93989.0,93988.0,0.20998632]
[1735735028257,8.53e-05,93989.0,93988.0,0.10998632]
[1735735031319,8.53e-05,93989.0,93988.0,0.20998632]
[1735735031535,8.53e-05,93989.0,93988.0,0.23554201]
[1735735031728,8.53e-05,93989.0,93988.0,0.31704201]
[1735735032348,8.53e-05,93989.0,93988.0,0.36514201]
[1735735033298,8.53e-05,93989.0,93988.0,0.33958632]
[1735735038838,8.53e-05,93989.0,93988.0,0.33948632]
[1735735039248,8.53e-05,93989.0,93988.0,0.33348632]
[1735735039438,8.53e-05,93989.0,93988.0,0.34148632]
[1735735039646,0.0010853,93989.0,93988.0,0.34748632]
[1735735039835,0.0010853,93989.0,93988.0,0.45147264]
[1735735041336,8.53e-05,94007.0,94006.0,0.443552]
[1735735041515,0.00015381,94007.0,94006.0,0.54753832]
[1735735042694,0.00015381,94007.0,94006.0,0.55453832]
[1735735042893,0.00015381,94007.0,94006.0,0.54953832]
[1735735043109,0.00015381,94007.0,94006.0,0.63576815]
[1735735043308,0.00115381,94007.0,94006.0,0.84276815]
[1735735043605,0.00015381,94007.0,94006.0,0.83976815]
[1735735044029,0.00015381,94007.0,94006.0,0.84876815]
[1735735044030,0.00115381,94007.0,94006.0,0.84876815]
[1735735044221,0.00115381,94007.0,94006.0,0.86576815]
[1735735044404,0.00115381,94007.0,94006.0,0.87276815]
[1735735054398,0.00115381,94007.0,94006.0,0.64976815]
[1735735054648,0.00115381,94007.0,94006.0,0.76353832]
[1735735055142,0.00115381,94007.0,94006.0,0.78653832]
[1735735064495,0.00115381,94007.0,94006.0,0.66353832]
[1735735064677,0.00115381,94007.0,94006.0,0.76353832]
[1735735065612,0.00115381,94007.0,94006.0,0.56353832]
[1735735065791,0.00115381,94007.0,94006.0,0.26988632]
[1735735066923,0.00115381,94007.0,94006.0,0.34739625]
[1735735068217,0.00115381,94007.0,94006.0,0.34039625]
[1735735068619,0.00015381,94007.0,94006.0,0.33739625]
[1735735069032,0.00115381,94007.0,94006.0,0.34639625]
[1735735072794,0.00115381,94007.0,94006.0,0.26888632]
[1735735076823,0.00115381,94007.0,94006.0,0.11898632]
[1735735077086,0.00115381,94007.0,94006.0,0.21898632]
[1735735077432,0.21390381,94007.0,94006.0,0.015]
[1735735077634,0.29660381,94007.0,94006.0,0.015]
[1735735077859,0.29660381,94007.0,94006.0,0.009]
[1735735078041,0.29660381,94007.0,94004.0,0.1]
[1735735078042,0.29560381,94007.0,94004.0,0.1]
[1735735078393,0.212754,94005.0,94004.0,0.20398632]
[1735735079496,0.0467,94006.0,94004.0,0.20398632]
[1735735080448,0.0467,94006.0,94004.0,0.20998632]
[1735735081586,0.0467,94006.0,94004.0,0.20598632]
[1735735082003,0.0467,94006.0,94004.0,0.21098632]
[1735735082210,0.0467,94006.0,94004.0,0.20898632]
[1735735082418,0.0467,94006.0,94004.0,0.21098632]
[1735735082620,0.00015381,94007.0,94006.0,0.1]
[1735735082781,0.00015381,94007.0,94006.0,0.20398632]
[1735735084641,0.00015381,94007.0,94006.0,0.20598632]
[1735735085732,0.00015381,94007.0,94006.0,0.21098632]
[1735735086097,0.00015381,94007.0,94006.0,0.25336125]
[1735735086502,0.00015381,94007.0,94006.0,0.21098632]
[1735735087090,0.00015381,94007.0,94006.0,0.20598632]
[1735735087288,0.00015381,94007.0,94006.0,0.21298632]
[1735735087289,0.00115381,94007.0,94006.0,0.21298632]
[1735735087599,0.00115381,94007.0,94006.0,0.21698632]
[1735735091727,0.00115381,94007.0,94006.0,0.29718632]
[1735735092090,0.00115381,94007.0,94006.0,0.34818125]
[1735735092295,0.00115381,94007.0,94006.0,0.60743325]
[1735735092773,0.00115381,94007.0,94006.0,0.34368632]
[1735735097116,0.00115381,94007.0,94006.0,0.26348632]
[1735735097928,0.00115381,94007.0,94006.0,0.21698632]
[1735735102984,0.00115381,94007.0,94006.0,0.11698632]
[1735735103129,0.00115381,94007.0,94006.0,0.21698632]
[1735735115911,0.212727,94017.0,94006.0,0.21698632]
[1735735116116,0.17527331,94019.0,94012.0,0.1]
[1735735116314,0.17527331,94019.0,94013.0,0.10398632]
[1735735117060,0.38799731,94019.0,94013.0,0.10398632]
[1735735117423,0.38799731,94019.0,94013.0,0.10798632]
[1735735118450,0.38804684,94019.0,94013.0,0.10898632]
[1735735118651,0.17532284,94019.0,94013.0,0.10498632]
[1735735119681,0.17532284,94019.0,94013.0,0.10398632]
[1735735120716,0.212731,94016.0,94013.0,0.10398632]
[1735735121878,0.212731,94016.0,94007.0,0.1]
[1735735122083,0.212741,94011.0,94008.0,0.10398632]
[1735735122753,4.953e-05,94019.0,94008.0,0.10398632]
[1735735122989,0.212743,94011.0,94008.0,0.10398632]
[1735735123760,0.212743,94011.0,94008.0,0.10798632]
[1735735125399,0.212743,94011.0,94008.0,0.10498632]
[1735735125794,0.212743,94011.0,94008.0,0.10698632]
[1735735125999,0.212743,94011.0,94008.0,0.10598632]
[1735735126324,0.212743,94011.0,94008.0,0.10498632]
[1735735126462,0.212743,94011.0,94008.0,0.10698632]
[1735735126669,0.212743,94011.0,94008.0,0.10598632]
[1735735127135,0.212743,94011.0,94008.0,0.10698632]
[1735735129478,0.2128283,94011.0,94008.0,0.10698632]
[1735735130131,0.4255713,94011.0,94008.0,0.003]
[1735735131617,0.4255713,94011.0,94008.0,0.001]
[1735735132011,0.4275713,94011.0,94008.0,0.001]
[1735735132240,0.212759,94003.0,93996.0,0.1]
[1735735132415,0.212759,94003.0,93997.0,0.10398632]
[1735735133560,0.212759,94003.0,93997.0,0.10498632]
[1735735135446,0.212759,94003.0,93997.0,0.10598632]
[1735735135959,0.212659,94003.0,93997.0,0.10598632]
[1735735137562,0.212752,94007.0,93997.0,0.10598632]
[1735735137809,0.212752,94007.0,93998.0,0.02845863]
[1735735138190,0.212752,94007.0,93997.0,0.10598632]
[1735735138524,0.212752,94007.0,93997.0,0.10498632]
[1735735138730,0.212759,94003.0,93997.0,0.10498632]
[1735735138890,0.212759,94003.0,93997.0,0.10398632]
[1735735139846,0.212759,94003.0,93997.0,0.10598632]
[1735735141035,0.212759,94003.0,93997.0,0.10615692]
[1735735142190,0.212752,94007.0,93997.0,0.10615692]
[1735735142749,0.21276,94003.0,93997.0,0.10615692]
[1735735142977,0.21276,94003.0,93997.0,0.10515692]
[1735735143163,0.212752,94006.0,93997.0,0.10415692]
[1735735143933,0.21277,93999.0,93997.0,0.0001706]
[1735735144415,0.15,93998.0,93997.0,0.0001706]
[1735735145426,0.15,93998.0,93997.0,0.0011706]
[1735735145625,0.15,93998.0,93997.0,0.0021706]
[1735735145828,0.15,93998.0,93997.0,0.0001706]
[1735735146980,0.155,93998.0,93997.0,0.0011706]
[1735735155192,0.005,93998.0,93997.0,0.21325398]
[1735735155652,8.53e-05,94003.0,93997.0,0.20415692]
[1735735155851,0.212761,94002.0,93997.0,0.20415692]
[1735735156065,0.212761,94002.0,93997.0,0.20515692]
[1735735156066,0.005,93998.0,93997.0,0.20515692]
[1735735156366,0.212761,94002.0,93997.0,0.20515692]
[1735735156367,0.212761,94002.0,93997.0,0.20415692]
[1735735156710,8.53e-05,94003.0,93997.0,0.20715692]
[1735735157277,8.53e-05,94003.0,93997.0,0.20515692]
[1735735157860,8.53e-05,94003.0,93997.0,0.20415692]
[1735735158103,0.212761,94002.0,93997.0,0.20415692]
[1735735160575,0.212761,94002.0,93998.0,0.02839569]
[1735735162384,0.15,94009.0,93998.0,0.02839569]
[1735735162603,0.212758,94004.0,94000.0,0.0765]
[1735735162792,0.15,94003.0,94000.0,0.0765]
[1735735163202,0.212747,94008.0,94001.0,0.0481]
[1735735163380,0.212744,94010.0,94002.0,0.23970158]
[1735735163586,8.53e-05,94011.0,94010.0,0.1]
[1735735163843,8.53e-05,94011.0,94010.0,0.20398632]
[1735735164242,8.53e-05,94011.0,94010.0,0.20388632]
[1735735164968,0.2128263,94011.0,94010.0,0.20388632]
[1735735165197,0.3628263,94011.0,94010.0,0.20388632]
[1735735165736,0.3628263,94011.0,94010.0,0.20488632]
[1735735165936,0.3628263,94011.0,94010.0,0.20688632]
[1735735167448,0.3628263,94011.0,94010.0,0.003]
[1735735167922,0.3628263,94011.0,94010.0,0.002]
[1735735168144,0.15,94010.0,94007.0,0.0765]
[1735735168387,0.362744,94010.0,94007.0,0.0765]
[1735735168840,0.575488,94010.0,94007.0,0.0765]
[1735735169669,0.575488,94010.0,94007.0,0.0775]
[1735735172469,0.575488,94010.0,94007.0,0.06816757]
[1735735178408,0.575488,94010.0,94007.0,0.06833817]
[1735735178613,0.5755733,94010.0,94007.0,0.06833817]
[1735735188654,0.5755733,94010.0,94007.0,0.06843817]
[1735735201481,0.5755733,94010.0,94007.0,0.0012706]
[1735735209445,8.53e-05,94010.0,94009.0,0.1486]
[1735735209681,8.53e-05,94010.0,94009.0,0.33388632]
[1735735211864,8.53e-05,94010.0,94009.0,0.33488632]
[1735735212308,8.53e-05,94010.0,94009.0,0.43488632]
[1735735212519,8.53e-05,94010.0,94009.0,0.52095211]
[1735735214539,8.53e-05,94010.0,94009.0,0.51995211]
[1735735214865,8.53e-05,94010.0,94009.0,0.52895211]
[1735735215067,8.53e-05,94010.0,94009.0,0.52595211]
[1735735215450,8.53e-05,94010.0,94009.0,0.53495211]
[1735735215624,8.53e-05,94010.0,94009.0,0.43495211]
[1735735215839,8.53e-05,94010.0,94009.0,0.41995211]
[1735735216074,8.53e-05,94010.0,94009.0,0.53395211]
[1735735216448,8.53e-05,94010.0,94009.0,0.52495211]
[1735735216657,8.53e-05,94010.0,94009.0,0.51995211]
[1735735217597,8.53e-05,94010.0,94009.0,0.52895211]
[1735735218274,8.53e-05,94010.0,94009.0,0.53495211]
[1735735219307,8.53e-05,94010.0,94009.0,0.44888632]
[1735735221664,8.53e-05,94010.0,94009.0,0.57188632]
[1735735222460,8.53e-05,94010.0,94009.0,0.54888632]
[1735735223552,8.53e-05,94010.0,94009.0,0.34888632]
[1735735224604,8.53e-05,94010.0,94009.0,0.34288632]
[1735735224802,8.53e-05,94010.0,94009.0,0.34688632]
[1735735225012,8.53e-05,94010.0,94009.0,0.33788632]
[1735735225222,8.53e-05,94010.0,94009.0,0.34688632]
[1735735237384,7.06e-05,94011.0,94009.0,0.43415271]
[1735735237582,7.06e-05,94011.0,94010.0,0.10398632]
[1735735238872,7.06e-05,94011.0,94010.0,0.11298632]
[1735735239255,7.06e-05,94011.0,94010.0,0.11698632]
[1735735249698,0.14915578,94028.0,94010.0,0.11698632]
[1735735249899,0.14915578,94028.0,94011.0,0.05599069]
[1735735250109,0.14915578,94028.0,94012.0,0.10398632]
[1735735251567,0.14915578,94028.0,94012.0,0.10598632]
[1735735251827,0.14915578,94028.0,94012.0,0.10698632]
[1735735253128,0.212704,94027.0,94012.0,0.10698632]
[1735735254359,0.212704,94027.0,94012.0,0.10498632]
[1735735254554,0.212704,94027.0,94012.0,0.10398632]
[1735735254889,0.212704,94027.0,94012.0,0.10698632]
[1735735258245,0.14915578,94028.0,94012.0,0.10698632]
[1735735259293,8.53e-05,94027.0,94012.0,0.10698632]
[1735735260330,8.53e-05,94027.0,94012.0,0.10598632]
[1735735260576,8.53e-05,94027.0,94012.0,0.10498632]
[1735735261002,8.53e-05,94027.0,94012.0,0.10598632]
[1735735261120,8.53e-05,94027.0,94012.0,0.10398632]
[1735735261368,8.53e-05,94027.0,94013.0,0.05471775]
[1735735261620,8.53e-05,94027.0,94015.0,0.0779]
[1735735261854,8.53e-05,94027.0,94016.0,0.10398632]
[1735735262383,8.53e-05,94027.0,94026.0,0.0999]
[1735735262578,8.53e-05,94027.0,94026.0,0.20388632]
[1735735262810,8.53e-05,94027.0,94026.0,0.28178632]
[1735735264533,8.53e-05,94027.0,94026.0,0.28378632]
[1735735264769,0.1500853,94027.0,94026.0,0.21188632]
[1735735266179,8.53e-05,94027.0,94026.0,0.21188632]
[1735735267981,8.53e-05,94027.0,94026.0,0.24081495]
[1735735268783,8.53e-05,94027.0,94026.0,0.21188632]
[1735735273594,0.21269,94034.0,94029.0,0.0999]
[1735735273771,0.21269,94034.0,94030.0,0.10398632]
[1735735274367,0.212691,94033.0,94030.0,0.10398632]
[1735735274944,0.212691,94033.0,94031.0,0.0999]
[1735735275146,0.212691,94033.0,94032.0,0.20217495]
[1735735276661,0.212691,94033.0,94032.0,0.18138632]
[1735735277289,8.53e-05,94035.0,94034.0,0.0999]
[1735735277490,8.53e-05,94035.0,94034.0,0.20388632]
[1735735278713,8.53e-05,94035.0,94034.0,0.20788632]
[1735735279449,8.53e-05,94035.0,94034.0,0.20888632]
[1735735279802,8.53e-05,94035.0,94034.0,0.20388632]
[1735735280007,8.53e-05,94035.0,94034.0,0.20788632]
[1735735280248,8.53e-05,94035.0,94034.0,0.20988632]
[1735735285189,8.53e-05,94035.0,94034.0,0.20788632]
[1735735285439,8.53e-05,94035.0,94034.0,0.004]
[1735735285643,8.53e-05,94035.0,94034.0,0.005]
[1735735285843,8.53e-05,94035.0,94034.0,0.001]
[1735735286290,8.53e-05,94035.0,94034.0,0.004]
[1735735291783,8.53e-05,94035.0,94034.0,0.29460338]
[1735735292561,8.53e-05,94035.0,94034.0,0.28418632]
[1735735319047,8.53e-05,94039.0,94034.0,0.28418632]
[1735735319245,8.53e-05,94039.0,94035.0,0.10398632]
[1735735320185,0.212684,94036.0,94035.0,0.20388632]
[1735735322301,0.212684,94036.0,94035.0,0.20588632]
[1735735323025,0.212684,94036.0,94035.0,0.20688632]
[1735735328112,0.11866174,94038.0,94035.0,0.20688632]
[1735735328342,8.53e-05,94039.0,94035.0,0.20688632]
[1735735328544,0.212684,94036.0,94035.0,0.20688632]
[1735735328912,0.212684,94036.0,94035.0,0.20588632]
[1735735329114,0.212684,94036.0,94035.0,0.20388632]
[1735735329339,0.212684,94036.0,94035.0,0.20488632]
[1735735329742,0.212684,94036.0,94035.0,0.20388632]
[1735735330178,0.212684,94036.0,94035.0,0.20488632]
[1735735330594,0.212684,94036.0,94035.0,0.20588632]
[1735735330908,0.212684,94036.0,94035.0,0.20505692]
[1735735331102,0.212684,94036.0,94035.0,0.20705692]
[1735735332062,0.212684,94036.0,94035.0,0.10715692]
[1735735332492,0.212684,94036.0,94035.0,0.20705692]
[1735735333125,0.212584,94036.0,94035.0,0.20705692]
[1735735335736,0.21264195,94036.0,94035.0,0.20705692]
[1735735342055,0.21264195,94036.0,94035.0,0.10715692]
[1735735342836,0.21264195,94036.0,94035.0,0.20705692]
[1735735343845,0.21272725,94036.0,94035.0,0.20705692]
[1735735344668,0.21272725,94036.0,94035.0,0.10715692]
[1735735344994,0.21272725,94036.0,94035.0,0.0031706]
[1735735350470,0.36272725,94036.0,94035.0,0.0031706]
[1735735362018,0.0001,94038.0,94035.0,0.0031706]
[1735735362236,0.0001,94038.0,94035.0,0.0021706]
[1735735362410,0.0001,94038.0,94035.0,0.0001706]
[1735735362739,0.212684,94036.0,94035.0,0.0021706]
[1735735363730,0.212684,94036.0,94035.0,0.0031706]
[1735735364185,0.212684,94036.0,94035.0,0.0021706]
[1735735365062,0.212684,94036.0,94035.0,0.0001706]
[1735735365239,0.212684,94036.0,94035.0,0.0011706]
[1735735365612,0.212684,94036.0,94035.0,0.0001706]
[1735735366036,0.213684,94036.0,94035.0,0.0001706]
[1735735367665,0.2137693,94036.0,94035.0,0.0001706]
[1735735371170,0.3637693,94036.0,94035.0,0.0001706]
[1735735374378,0.3636693,94036.0,94035.0,0.0001706]
[1735735383822,0.3636693,94036.0,94035.0,0.1268706]
[1735735384029,0.1510853,94036.0,94035.0,0.33075692]
[1735735384662,0.1510853,94036.0,94035.0,0.1268706]
[1735735384867,0.1500853,94036.0,94035.0,0.1268706]
[1735735385046,0.1500853,94036.0,94035.0,0.0788706]
[1735735385482,0.1500853,94036.0,94035.0,0.0778706]
[1735735385699,0.1500853,94036.0,94035.0,0.0798706]
[1735735386116,0.1500853,94036.0,94035.0,0.0778706]
[1735735386351,0.1510853,94036.0,94035.0,0.0788706]
[1735735386810,0.1510853,94036.0,94035.0,0.0778706]
[1735735387203,0.1510853,94036.0,94035.0,0.0001706]
[1735735394240,0.1500853,94036.0,94035.0,0.0001706]
[1735735394449,0.1510853,94036.0,94035.0,0.0001706]
[1735735394771,0.1500853,94036.0,94035.0,0.0001706]
[1735735394995,0.1540853,94036.0,94035.0,0.0011706]
[1735735395731,0.1500853,94036.0,94035.0,0.0001706]
[1735735395937,0.1550853,94036.0,94035.0,0.0011706]
[1735735397024,0.1550853,94036.0,94035.0,6e-07]
[1735735397226,0.1550853,94036.0,94031.0,2e-07]
[1735735397227,0.0001,94034.0,94031.0,2e-07]
[1735735397490,0.0781,94033.0,94031.0,2e-07]
[1735735397691,0.15,94032.0,94031.0,2e-07]
[1735735398515,0.15,94032.0,94031.0,0.0010002]
[1735735398923,5.2,94032.0,94031.0,2e-07]
[1735735399145,0.155,94032.0,94031.0,2e-07]
[1735735399323,0.157,94032.0,94031.0,2e-07]
[1735735401114,0.26108632,94032.0,94031.0,2e-07]
[1735735401339,0.43895079,94032.0,94031.0,2e-07]
[1735735401553,0.50915079,94032.0,94031.0,2e-07]
[1735735401769,0.362763,94001.0,94000.0,0.998171]
[1735735403246,0.362763,94001.0,94000.0,0.99822895]
[1735735405467,0.362763,94001.0,94000.0,0.93439795]
[1735735406093,0.369763,94001.0,94000.0,0.93439795]
[1735735406823,0.371763,94001.0,94000.0,0.93439795]
[1735735407235,0.369763,94001.0,94000.0,0.93439795]
[1735735407617,0.371763,94001.0,94000.0,0.93439795]
[1735735412348,0.371763,94001.0,94000.0,0.89939795]
[1735735412789,0.37422368,94001.0,94000.0,0.87812095]
[1735735412994,0.37422368,94001.0,94000.0,0.81428995]
[1735735413189,0.37422368,94001.0,94000.0,0.77928995]
[1735735413412,5.42422368,94001.0,94000.0,0.77928995]
[1735735414095,5.42422368,94001.0,94000.0,0.74428995]
[1735735414610,5.42422368,94001.0,94000.0,0.70190655]
[1735735415040,5.42430898,94001.0,94000.0,0.70190655]
[1735735415281,5.42430898,94001.0,94000.0,0.68062955]
[1735735415282,5.5739953,94001.0,94000.0,0.68062955]
[1735735415518,5.5739953,94001.0,94000.0,0.59552155]
[1735735415955,5.5739953,94001.0,94000.0,0.55296755]
[1735735416210,5.5739953,94001.0,94000.0,0.53169055]
[1735735416419,5.5739953,94001.0,94000.0,0.51041355]
[1735735416631,5.5739953,94001.0,94000.0,0.48913655]
[1735735416833,5.5739953,94001.0,94000.0,0.40402855]
[1735735417183,5.673995,94001.0,93987.0,0.0001706]
[1735735417392,0.212813,93979.0,93978.0,0.1215]
[1735735417622,0.212813,93979.0,93978.0,0.1219955]
[1735735418658,0.213813,93979.0,93978.0,0.1249955]
[1735735419663,0.213813,93979.0,93978.0,0.0034955]
[1735735420305,0.213813,93979.0,93978.0,0.0004955]
[1735735420441,0.212813,93979.0,93978.0,0.0004955]
[1735735420664,0.214813,93979.0,93978.0,0.0004955]
[1735735421302,0.216813,93979.0,93978.0,0.0004955]
[1735735425102,0.216813,93979.0,93978.0,0.0763955]
[1735735425500,0.0401501,93980.0,93978.0,0.0763955]
[1735735426113,0.212813,93979.0,93978.0,0.0763955]
[1735735426319,0.1793853,94001.0,93978.0,0.0763955]
[1735735426320,0.2128,93985.0,93979.0,0.0999]
[1735735426523,0.2128,93985.0,93980.0,0.0759]
[1735735426723,0.4256,93985.0,93980.0,0.0759]
[1735735427420,0.4256,93985.0,93980.0,0.0729]
[1735735427654,0.4266,93985.0,93980.0,0.0729]
[1735735427977,0.15,93984.0,93980.0,0.0739]
[1735735428174,0.2138,93985.0,93980.0,0.0739]
[1735735428175,0.15,93982.0,93980.0,0.0739]
[1735735428421,0.212808,93981.0,93980.0,0.0739]
[1735735428822,0.212808,93981.0,93980.0,0.0729]
[1735735429069,0.212808,93981.0,93980.0,0.0759]
[1735735429422,0.212808,93981.0,93980.0,0.0749]
[1735735429828,0.212808,93981.0,93980.0,0.0769]
[1735735430403,0.212808,93981.0,93980.0,0.0749]
[1735735430630,0.212808,93981.0,93980.0,0.0789]
[1735735434824,0.362808,93981.0,93980.0,0.0789]
[1735735435292,0.15,93981.0,93980.0,0.0789]
[1735735438586,0.15,93981.0,93980.0,0.1788]
[1735735439211,0.15,93981.0,93980.0,0.1788854]
[1735735439858,0.15,93981.0,93980.0,0.0789854]
[1735735445758,0.15,93981.0,93980.0,0.0787854]
[1735735445955,0.15,93981.0,93980.0,0.0060854]
[1735735446855,0.15,93981.0,93980.0,0.0040854]
[1735735447120,0.15,93981.0,93980.0,8.54e-05]
[1735735447378,0.152,93981.0,93980.0,8.54e-05]
[1735735449663,0.153,93981.0,93980.0,8.54e-05]
[1735735451445,0.1531708,93981.0,93980.0,8.54e-05]
[1735735456771,0.1531708,93981.0,93980.0,0.0467854]